bitfinex-derivatives/quotes_ETHF0:USTF0_20210407
["timestamp","ask_amount","ask_price","bid_price","bid_amount"]
[1617807671328,2.90695,1999.0,1998.7,6.14]
[1617807671525,2.90695,1999.0,1998.6,6.3]
[1617807671724,2.90695,1999.0,1998.5,63.597]
[1617807671926,2.90695,1999.0,1998.8,6.14]
[1617807672227,2.90695,1999.0,1998.6,6.22]
[1617807672430,78.6734,1998.9,1998.5,2.8743]
[1617807672726,79.6647,1998.9,1998.6,6.23]
[1617807673624,79.6647,1998.9,1998.3,6.16]
[1617807674027,79.6647,1998.9,1998.7,6.0]
[1617807674226,0.9913,1998.9,1998.3,6.17]
[1617807674426,0.9913,1998.9,1998.4,71.1521]
[1617807674625,0.9913,1998.9,1998.8,6.09]
[1617807674927,0.9913,1998.9,1998.5,6.0]
[1617807675126,0.9913,1998.9,1998.8,6.17]
[1617807675528,0.9913,1998.9,1998.5,6.16]
[1617807675929,0.9913,1998.9,1998.8,6.17]
[1617807676127,0.9913,1998.9,1998.5,6.17]
[1617807676428,0.9913,1998.9,1998.8,6.09]
[1617807676632,3.89825,1998.9,1998.4,71.1521]
[1617807676829,3.89825,1998.9,1998.5,6.07]
[1617807677329,30.0,1998.8,1998.5,6.07]
[1617807677661,32.5578,1998.8,1998.5,6.07]
[1617807677849,34.5578,1998.8,1998.3,6.18]
[1617807678046,60.4798,1998.5,1998.3,6.18]
[1617807678242,62.4798,1998.5,1996.8,56.3881]
[1617807678537,62.4798,1998.5,1998.4,6.01]
[1617807678738,63.38675,1998.5,1997.6,6.04]
[1617807678931,2.90695,1998.5,1997.2,2.90695]
[1617807679132,2.90695,1998.5,1998.4,0.25]
[1617807679531,2.90695,1998.5,1998.0,72.1124]
[1617807679732,2.90695,1998.5,1998.4,6.2]
[1617807679934,2.90695,1998.5,1998.4,8.8941]
[1617807680133,2.90695,1998.5,1998.4,2.6941]
[1617807680332,2.90695,1998.5,1998.4,8.9641]
[1617807680733,2.90695,1998.5,1998.4,11.87105]
[1617807680933,81.7746,1999.4,1999.1,59.8967]
[1617807681170,81.7746,1999.4,1999.1,61.7961]
[1617807681634,81.7746,1999.4,1999.2,6.19]
[1617807682435,2.571,1999.6,1999.2,6.19]
[1617807682637,2.571,1999.6,1999.5,2.90695]
[1617807682837,2.571,1999.6,1999.5,4.91435]
[1617807683238,2.571,1999.6,1999.5,11.04435]
[1617807684739,5.47795,1999.6,1999.5,11.04435]
[1617807685442,2.90695,1999.6,1999.5,11.04435]
[1617807687953,2.90695,1999.6,1999.5,9.03695]
[1617807689149,2.90695,1999.6,1999.5,11.54635]
[1617807692470,2.90695,1999.6,1999.5,9.03695]
[1617807692699,4.97905,1999.6,1999.5,9.03695]
[1617807692888,4.97905,1999.6,1999.5,6.13]
[1617807693361,4.97905,1999.6,1999.0,6.2]
[1617807693558,4.97905,1999.6,1999.5,6.04]
[1617807693756,4.97905,1999.6,1999.5,5.1516]
[1617807693957,4.97905,1999.6,1999.0,6.19]
[1617807694260,4.97905,1999.6,1999.5,6.16]
[1617807694458,4.97905,1999.6,1999.0,6.13]
[1617807694659,2.0721,1999.6,1999.4,70.0833]
[1617807694861,2.0721,1999.6,1999.5,6.17]
[1617807695058,3.6803,2000.1,1999.4,70.0833]
[1617807695459,2.6747,2000.1,1999.5,6.28]
[1617807695662,75.7775,2000.5,1999.5,6.28]
[1617807696060,0.987,2000.7,1999.5,6.28]
[1617807696262,0.987,2000.7,2000.2,61.4893]
[1617807696661,2.90695,2000.4,2000.3,6.1]
[1617807705280,4.87575,2000.4,1999.9,6.16]
[1617807705680,4.87575,2000.4,2000.3,6.29]
[1617807706003,4.87575,2000.4,1999.9,6.12]
[1617807706183,34.87575,2000.4,2000.3,6.18]
[1617807706581,4.87575,2000.4,1999.9,6.07]
[1617807706902,3.89315,2000.0,1999.6,73.4984]
[1617807707081,5.84085,2000.0,1999.6,73.4984]
[1617807707416,5.84085,2000.0,1999.8,6.23]
[1617807707627,5.84085,2000.0,1999.7,6.11]
[1617807707836,5.84085,2000.0,1999.9,6.13]
[1617807708081,5.84085,2000.0,1999.7,6.18]
[1617807708407,5.84085,2000.0,1999.9,6.2]
[1617807708781,5.84085,2000.0,1999.7,6.19]
[1617807708981,69.8037,1999.8,1998.8,78.81455]
[1617807709282,69.8037,1999.8,1999.0,3.19]
[1617807709482,69.8037,1999.8,1998.9,6.0]
[1617807709781,69.8037,1999.8,1999.1,6.07]
[1617807710182,69.8037,1999.8,1998.9,6.15]
[1617807710382,69.8037,1999.8,1999.2,6.25]
[1617807710682,30.0,1999.7,1998.9,6.28]
[1617807710882,2.90695,1999.3,1998.9,6.28]
[1617807711083,5.17395,1999.3,1998.8,75.9076]
[1617807711283,5.17395,1999.3,1999.0,6.11]
[1617807711684,5.17395,1999.3,1998.9,6.05]
[1617807711885,5.17395,1999.3,1999.1,6.3]
[1617807712084,2.90695,1999.3,1999.1,6.3]
[1617807712285,2.90695,1999.3,1998.9,6.06]
[1617807712586,2.90695,1999.3,1999.2,6.0]
[1617807712785,2.90695,1999.3,1998.8,75.9076]
[1617807713088,2.90695,1999.3,1999.2,6.22]
[1617807713486,2.90695,1999.3,1998.9,6.21]
[1617807714891,72.3747,1999.8,1999.2,2.90695]
[1617807715303,72.3747,1999.8,1999.3,6.1]
[1617807715304,2.571,1999.8,1999.3,6.1]
[1617807715491,2.571,1999.8,1999.5,61.5473]
[1617807715692,2.571,1999.8,1999.6,6.12]
[1617807716891,2.90695,1999.7,1999.6,6.12]
[1617807718894,2.90695,1999.7,1999.6,9.02695]
[1617807720596,2.90695,1999.7,1999.6,11.02695]
[1617807720798,2.90695,1999.7,1999.6,9.02695]
[1617807733717,6.1862,2000.7,1999.7,58.6073]
[1617807733917,3.558,2000.7,1999.7,58.6073]
[1617807734117,3.558,2000.7,1999.8,6.11]
[1617807735021,3.558,2000.7,2000.5,79.7201]
[1617807735518,3.558,2000.7,2000.6,3.05]
[1617807737118,6.46495,2000.7,2000.6,3.05]
[1617807746829,8.36085,2000.7,2000.6,3.05]
[1617807747430,8.36085,2000.7,2000.6,2.7102]
[1617807747630,8.36085,2000.7,2000.6,2.0617]
[1617807748630,6.46495,2000.7,2000.6,2.0617]
[1617807752542,6.46495,2000.7,2000.6,1.5678]
[1617807752739,6.46495,2000.7,2000.6,1.0475]
[1617807752939,6.46495,2000.7,2000.6,0.6411]
[1617807753241,6.46495,2000.7,2000.6,0.3326]
[1617807754342,6.46495,2000.7,2000.5,79.7201]
[1617807754541,6.46495,2000.7,2000.6,6.04]
[1617807757847,6.46495,2000.7,2000.2,6.14]
[1617807759250,2.90695,2000.3,2000.2,6.14]
[1617807763462,2.571,2000.7,2000.2,6.14]
[1617807763858,2.571,2000.7,2000.6,6.16]
[1617807764057,2.571,2000.7,2000.6,9.1524]
[1617807765267,2.571,2000.7,2000.6,12.05935]
[1617807766661,2.90695,2000.8,2000.6,12.05935]
[1617807766861,2.90695,2000.8,2000.7,6.19]
[1617807767163,2.571,2001.7,2001.2,2.90695]
[1617807767466,2.571,2001.7,2001.2,5.74525]
[1617807767664,2.571,2001.7,2001.3,6.25]
[1617807769261,2.571,2001.7,2001.5,2.90695]
[1617807769660,2.571,2001.7,2001.6,6.02]
[1617807771262,5.47795,2001.7,2001.6,6.02]
[1617807772564,2.90695,2001.7,2001.6,6.02]
[1617807772965,3.92085,2001.7,2001.6,6.02]
[1617807773165,2.90695,2001.7,2001.6,6.02]
[1617807777369,5.74245,2001.7,2001.6,6.02]
[1617807777584,5.74245,2001.7,2001.3,6.02]
[1617807777770,5.74245,2001.7,2001.3,5.04]
[1617807778071,5.74245,2001.7,1996.8,11.20123078]
[1617807778269,5.74245,2001.7,2001.4,6.18]
[1617807778580,5.74245,2001.7,2001.6,0.01]
[1617807778779,5.74245,2001.7,2001.5,6.23]
[1617807778969,58.3187,2001.6,2001.5,6.23]
[1617807779269,58.3187,2001.6,2001.0,6.22]
[1617807779469,58.3187,2001.6,2001.5,6.17]
[1617807779669,58.3187,2001.6,2001.0,6.09]
[1617807779870,61.1521,2001.6,2001.0,6.09]
[1617807780069,61.1521,2001.6,2001.5,6.22]
[1617807780271,61.1521,2001.6,2001.0,6.24]
[1617807780470,63.1521,2001.6,2001.0,6.24]
[1617807780672,61.1521,2001.6,2001.5,5.3623]
[1617807780872,61.1521,2001.6,2001.0,6.23]
[1617807781275,61.1521,2001.6,2001.5,6.04]
[1617807781476,64.05905,2001.6,2001.5,6.04]
[1617807781673,64.05905,2001.6,2001.0,6.28]
[1617807781873,64.05905,2001.6,2001.5,6.25]
[1617807782275,64.05905,2001.6,2001.0,6.11]
[1617807782476,94.05905,2001.6,2001.5,6.17]
[1617807782777,79.0317,2001.5,2001.0,6.16]
[1617807783180,79.0317,2001.5,2000.7,71.0991]
[1617807783376,79.0317,2001.5,2001.1,6.29]
[1617807783779,79.0317,2001.5,2000.7,71.0991]
[1617807783979,30.0,2001.4,2001.2,6.09]
[1617807784278,30.0,2001.4,1999.6,86.3347]
[1617807784279,75.9422,2001.2,2000.8,6.12]
[1617807784477,33.0073,2001.2,2001.0,6.06]
[1617807784733,33.0073,2001.2,2001.0,4.8216]
[1617807784877,33.0073,2001.2,2000.9,4.6106]
[1617807785078,33.0073,2001.2,2001.1,5.3552]
[1617807785379,33.0073,2001.2,1999.5,6.18]
[1617807785380,33.0073,2001.2,1997.9,5.30567023]
[1617807785578,30.0,2001.0,1999.6,9.16695]
[1617807785796,34.3391,2001.0,1999.5,6.27]
[1617807786077,34.3391,2001.0,1999.2,0.57]
[1617807786288,34.3391,2001.0,1999.7,6.14]
[1617807786577,34.3391,2001.0,1999.2,6.27]
[1617807786779,34.3391,2001.0,1999.8,6.27]
[1617807787177,34.3391,2001.0,1999.2,6.28]
[1617807787477,34.3391,2001.0,1999.9,9.05695]
[1617807787677,34.3391,2001.0,1999.9,2.90695]
[1617807788179,61.052,2000.9,2000.3,56.7488]
[1617807788413,63.052,2000.9,2000.4,6.28]
[1617807788778,61.052,2000.9,2000.4,6.28]
[1617807789278,1.0073,2001.2,2000.9,76.4154]
[1617807789480,2.90695,2001.0,2000.9,76.4154]
[1617807789879,2.90695,2001.0,2000.9,82.6054]
[1617807791483,2.90695,2001.0,2000.9,85.51235]
[1617807793382,2.90695,2001.0,2000.9,9.09695]
[1617807793684,2.90695,2001.4,2000.9,9.09695]
[1617807794083,2.571,2001.6,2000.9,9.09695]
[1617807794484,3.5784,2002.5,2001.1,6.18]
[1617807794687,3.5784,2002.5,2002.0,60.4851]
[1617807794886,3.5784,2002.5,2002.0,63.0171]
[1617807795087,3.5784,2002.5,2002.1,6.02]
[1617807795486,2.90695,2002.2,2002.1,6.02]
[1617807800997,2.571,2002.5,2002.1,6.02]
[1617807801597,2.90695,2002.6,2002.4,2.90695]
[1617807801997,2.90695,2002.6,2002.5,6.06]
[1617807802197,2.90695,2002.6,2002.5,8.4438]
[1617807811731,2.90695,2002.6,2002.5,6.06]
[1617807813023,2.90695,2002.6,2000.9,2.0]
[1617807813024,2.90695,2002.6,2001.7,6.16]
[1617807813419,2.90695,2002.6,2001.5,80.2603]
[1617807813420,71.0075,2002.1,2001.5,80.2603]
[1617807813611,71.0075,2002.1,2002.0,2.90695]
[1617807814011,71.0075,2002.1,2002.0,9.19695]
[1617807814711,71.0075,2002.1,2002.0,6.29]
[1617807815111,71.0075,2002.1,2001.6,6.17]
[1617807815315,2.239,2002.6,2001.6,6.17]
[1617807815513,2.239,2002.6,1999.7,2.3128]
[1617807815514,75.9174,2001.7,2001.2,6.24]
[1617807815714,2.90695,2001.3,2001.2,6.24]
[1617807815916,2.90695,2001.3,2001.1,6.22]
[1617807816317,67.2702,2001.1,2001.0,3.17]
[1617807817018,2.90695,2001.3,2001.1,56.0477]
[1617807817217,2.90695,2001.3,2001.0,3.17]
[1617807817518,2.90695,2001.3,2001.2,6.27]
[1617807817717,2.90695,2001.3,2001.0,6.15]
[1617807818117,2.90695,2001.3,2001.2,6.08]
[1617807818318,2.90695,2001.3,2001.0,6.2]
[1617807818518,73.1107,2001.1,2001.0,6.2]
[1617807818718,73.1107,2001.1,2000.9,2.90695]
[1617807818918,73.1107,2001.1,2001.0,6.14]
[1617807819619,2.90695,2001.3,2001.0,6.14]
[1617807820050,2.90695,2001.3,2001.0,5.3933]
[1617807820220,74.4733,2001.0,2000.2,6.29]
[1617807820420,74.4733,2001.0,2000.1,13.0601]
[1617807820818,74.4733,2001.0,2000.3,6.23]
[1617807821024,5.84995,2001.3,2000.2,6.19]
[1617807821220,61.8328,2000.7,2000.2,74.097]
[1617807821427,64.7702,2000.7,2000.4,6.27]
[1617807821646,2.9374,2000.7,2000.4,6.27]
[1617807821841,2.90695,2000.9,2000.7,67.8426]
[1617807822052,0.9912,2001.9,2000.7,67.8426]
[1617807822359,2.571,2001.9,2001.7,79.8175]
[1617807822547,2.571,2001.9,2001.7,82.3425]
[1617807822735,2.571,2001.9,2001.8,6.13]
[1617807823730,5.47795,2001.9,2001.8,9.03695]
[1617807826726,2.571,2001.9,2001.8,9.03695]
[1617807828127,8.00495,2002.5,2001.8,9.03695]
[1617807828328,2.90695,2002.5,2002.2,80.6861]
[1617807828528,2.90695,2002.5,2002.2,83.321]
[1617807828829,2.90695,2002.5,2002.3,6.27]
[1617807829228,3.90455,2002.5,2002.3,6.27]
[1617807829731,2.90695,2002.5,2002.3,6.27]
[1617807831129,3.90285,2002.5,2002.3,6.27]
[1617807831329,2.90695,2002.5,2002.3,6.27]
[1617807832230,2.90695,2002.5,2002.3,5.6438]
[1617807832431,3.89585,2002.5,2002.3,5.6438]
[1617807832638,2.90695,2002.5,2002.3,3.1447]
[1617807833042,2.90695,2002.5,2002.3,2.4026]
[1617807835935,2.90695,2002.5,2002.4,2.90695]
[1617807836134,2.90695,2002.5,2002.4,9.12695]
[1617807837539,67.91875,2002.5,2002.4,9.12695]
[1617807839540,65.0118,2002.5,2002.4,9.12695]
[1617807839840,3.5548,2003.0,2002.8,2.90695]
[1617807840041,3.5548,2003.0,2002.8,5.92615]
[1617807840244,3.5548,2003.0,2002.9,6.23]
[1617807841845,5.47795,2003.0,2002.9,6.23]
[1617807844953,2.571,2003.0,2002.9,6.23]
[1617807845151,7.669,2003.7,2003.6,74.8716]
[1617807845351,7.669,2003.7,2003.6,83.7147]
[1617807845751,3.5581,2004.3,2003.6,83.7147]
[1617807845951,2.90695,2003.7,2003.6,86.62165]
[1617807846652,2.90695,2003.7,2003.6,11.75005]
[1617807847551,5.47795,2003.7,2003.6,11.75005]
[1617807848852,5.47795,2003.7,2003.6,8.8431]
[1617807849154,5.47795,2003.7,2003.6,6.0]
[1617807849359,5.47795,2003.7,2003.5,6.1]
[1617807849756,6.48485,2003.7,2003.6,5.98]
[1617807849955,5.47795,2003.7,2003.5,6.04]
[1617807850458,5.47795,2003.7,2003.6,6.21]
[1617807850657,5.47795,2003.7,2003.5,5.99]
[1617807850857,8.78505,2003.7,2003.5,5.99]
[1617807851168,8.78505,2003.7,2003.6,5.3224]
[1617807851357,8.78505,2003.7,2003.5,6.05]
[1617807852058,6.48045,2003.7,2003.5,5.0697]
[1617807852457,3.90945,2003.7,2003.5,5.0697]
[1617807855066,33.90945,2003.7,2003.5,5.0697]
[1617807855765,103.0232,2003.5,2002.0,80.747]
[1617807855964,105.8937,2003.5,2002.1,2.90695]
[1617807856265,30.0,2003.3,2002.1,8.90695]
[1617807856466,32.0,2003.2,2002.1,8.90695]
[1617807857971,2.90695,2002.2,2002.1,8.90695]
[1617807867287,3.89335,2002.2,2002.1,8.90695]
[1617807867515,2.90695,2002.2,2002.1,8.90695]
[1617807869479,2.90695,2002.2,2002.1,6.0]
[1617807869679,35.79925,2002.2,2002.1,6.0]
[1617807869979,35.79925,2002.2,2001.2,6.22]
[1617807870200,2.90695,2001.3,2001.1,13.8244]
[1617807870412,5.02295,2001.3,2001.1,13.8244]
[1617807870579,6.01855,2001.3,2001.2,2.0387]
[1617807871282,6.01855,2001.3,2001.1,13.8244]
[1617807871283,5.02295,2001.3,2001.1,13.3583]
[1617807871490,5.02295,2001.3,2001.0,78.0015]
[1617807871682,5.02295,2001.3,2001.2,6.29]
[1617807871982,5.02295,2001.3,2001.1,5.8179]
[1617807872184,5.02295,2001.3,2001.2,6.17]
[1617807872393,6.01345,2001.3,2001.2,6.0753]
[1617807872586,6.01345,2001.3,2001.1,5.1823]
[1617807872784,6.01345,2001.3,2001.2,6.04]
[1617807873186,6.01345,2001.3,2001.1,6.28]
[1617807873390,6.01345,2001.3,2001.2,6.19]
[1617807873788,6.01345,2001.3,2001.0,78.0015]
[1617807873789,6.01345,2001.3,2001.1,6.29]
[1617807874098,6.01345,2001.3,2001.2,6.23]
[1617807874291,5.02295,2001.3,2001.2,6.23]
[1617807874489,5.02295,2001.3,2001.0,78.0015]
[1617807874490,5.02295,2001.3,2001.1,6.24]
[1617807874687,5.02295,2001.3,2001.2,6.19]
[1617807874886,5.02295,2001.3,2001.0,78.0015]
[1617807875088,5.02295,2001.3,2001.1,6.01]
[1617807875292,6.03395,2001.3,2001.2,6.15]
[1617807875587,6.03395,2001.3,2001.1,6.02]
[1617807875885,6.03395,2001.3,2001.2,6.19]
[1617807876290,6.03395,2001.3,2001.1,6.01]
[1617807876489,6.03395,2001.3,2001.2,6.06]
[1617807876789,6.03395,2001.3,2001.1,6.25]
[1617807877088,6.03395,2001.3,2001.2,6.06]
[1617807877488,6.03395,2001.3,2001.1,6.26]
[1617807877688,6.03395,2001.3,2001.2,6.11]
[1617807878189,3.91795,2001.3,2001.2,57.6362]
[1617807878388,3.91795,2001.3,2001.2,62.9462]
[1617807879794,3.91795,2001.3,2001.2,5.31]
[1617807880393,3.91795,2001.3,2000.3,2.90695]
[1617807880595,36.76745,2001.3,2001.2,6.25]
[1617807881098,59.5023,2001.2,1999.9,64.3391]
[1617807881298,30.0,2001.2,2000.0,6.28]
[1617807881499,32.0,2001.2,2000.5,6.09]
[1617807881799,101.0851,2000.5,1999.4,6.12]
[1617807881999,32.376,2000.5,2000.1,6.04]
[1617807882207,32.376,2000.5,1999.0,13.9055]
[1617807882400,71.0923,2000.1,1999.5,2.90695]
[1617807882799,71.0923,2000.1,1999.6,2.7678]
[1617807883598,72.0872,2000.1,1999.6,2.7678]
[1617807883800,0.9949,2000.1,1999.6,2.7678]
[1617807884002,0.9949,2000.1,1999.6,71.0975]
[1617807884406,2.90695,1999.7,1999.6,71.0975]
[1617807907427,78.02665,1999.7,1999.6,2.7678]
[1617807909030,5.39355,1999.7,1999.6,2.7678]
[1617807909228,5.39355,1999.7,1999.6,73.2329]
[1617807912633,5.39355,1999.7,1999.6,72.6502]
[1617807913233,5.39355,1999.7,1999.6,2.1851]
[1617807913433,5.39355,1999.7,1999.6,1.2151]
[1617807915336,5.39355,1999.7,1999.6,0.6167]
[1617807915538,5.39355,1999.7,1999.6,0.2109]
[1617807916636,35.39355,1999.7,1999.6,0.2109]
[1617807919442,5.39355,1999.7,1999.6,0.2109]
[1617807921042,60.2322,1999.6,1998.6,2.90695]
[1617807921342,60.2322,1999.6,1998.7,6.27]
[1617807921542,35.39355,1999.7,1998.7,6.27]
[1617807921742,30.0,1999.6,1998.7,6.27]
[1617807922042,73.3406,1998.7,1998.4,6.3]
[1617807922243,76.2609,1998.7,1998.4,6.3]
[1617807922441,76.2609,1998.7,1998.0,13.1957]
[1617807922642,76.2609,1998.7,1998.5,6.04]
[1617807922942,2.90695,1998.6,1998.2,6.29]
[1617807923146,2.90695,1998.6,1998.1,6.25]
[1617807923343,2.90695,1998.6,1998.5,3.28]
[1617807923545,32.90695,1998.6,1998.3,6.17]
[1617807923745,2.90695,1998.6,1998.2,6.0]
[1617807923975,2.90695,1998.6,1997.2,0.17]
[1617807924166,2.90695,1998.6,1996.9,13.8998]
[1617807924167,2.90695,1998.6,1997.0,0.24]
[1617807924168,61.253,1998.1,1997.0,0.24]
[1617807924446,2.2973,1998.1,1997.3,6.05]
[1617807924647,2.2973,1998.1,1997.8,77.6558]
[1617807924868,2.90695,1997.9,1997.8,77.6558]
[1617807925246,2.90695,1997.9,1997.8,83.7758]
[1617807925962,2.90695,1997.9,1997.8,6.12]
[1617807926377,57.8714,1997.8,1997.4,6.17]
[1617807926547,57.8714,1997.8,1997.3,2.90695]
[1617807926748,59.7563,1997.8,1997.3,2.90695]
[1617807927049,2.90695,1997.4,1997.3,2.90695]
[1617807927248,2.90695,1997.4,1997.3,9.00695]
[1617807927849,2.90695,1997.4,1997.3,6.1]
[1617807928057,4.87205,1997.4,1997.3,6.1]
[1617807928265,81.8718,1997.3,1997.0,6.23]
[1617807928494,81.8718,1997.3,1996.6,6.14]
[1617807928661,81.8718,1997.3,1995.9,2.0]
[1617807928855,2.90695,1997.2,1997.1,6.03]
[1617807929058,2.90695,1997.2,1996.7,6.0]
[1617807929261,2.90695,1997.2,1996.2,0.62]
[1617807929459,2.90695,1997.2,1997.1,5.64]
[1617807929658,32.90695,1997.2,1996.8,6.02]
[1617807929859,34.90695,1997.2,1996.5,6.02]
[1617807930059,81.1373,1995.9,1995.0,12.7947]
[1617807930359,83.085,1995.9,1995.1,6.21]
[1617807930958,83.085,1995.9,1995.5,2.90695]
[1617807931359,83.085,1995.9,1995.6,6.07]
[1617807932964,2.90695,1995.7,1995.6,6.07]
[1617807933164,2.777,1997.0,1995.6,6.07]
[1617807933368,2.777,1997.0,1996.3,74.8663]
[1617807933565,2.777,1997.0,1996.3,77.6441]
[1617807933770,58.115,1997.5,1996.4,6.15]
[1617807934866,77.0759,1998.2,1997.1,77.7514]
[1617807935116,77.0759,1998.2,1997.4,2.90695]
[1617807935477,30.0,1998.5,1997.4,2.90695]
[1617807935478,30.0,1998.5,1997.5,6.05]
[1617807935670,30.0,1998.5,1997.8,83.3095]
[1617807936169,76.5965,1998.6,1997.9,5.2637]
[1617807936371,76.5965,1998.6,1997.9,7.6213]
[1617807936969,2.90695,1998.0,1997.9,10.52825]
[1617807940972,2.90695,1998.2,1997.9,10.52825]
[1617807941173,0.9932,1999.6,1997.9,10.52825]
[1617807941475,0.9916,1999.3,1997.9,10.52825]
[1617807941674,0.9916,1999.3,1998.8,69.9055]
[1617807941873,0.9916,1999.3,1998.8,72.1363]
[1617807942073,0.9916,1999.3,1998.9,6.01]
[1617807942284,1.0114,1999.6,1998.9,6.01]
[1617807942888,1.0114,1999.6,1999.4,81.4678]
[1617807943089,2.90695,1999.5,1999.4,83.3834]
[1617807943374,2.90695,1999.5,1999.4,89.4334]
[1617807944276,1.0133,1999.5,1999.4,89.4334]
[1617807944676,82.4606,2000.4,1999.4,89.4334]
[1617807944992,3.5728,2000.8,1999.9,2.90695]
[1617807945177,2.571,2000.8,2000.1,64.0968]
[1617807945578,32.571,2000.8,2000.2,6.15]
[1617807945781,2.571,2000.8,2000.2,6.15]
[1617807945979,83.1735,2000.5,2000.2,6.15]
[1617807946183,84.1875,2000.5,2000.0,6.06]
[1617807946481,84.1875,2000.5,2000.3,6.21]
[1617807946782,84.1875,2000.5,2000.0,6.19]
[1617807946981,84.1875,2000.5,2000.4,6.16]
[1617807947181,84.1875,2000.5,2000.4,8.5638]
[1617807947481,84.1875,2000.5,2000.4,1.634]
[1617807947681,84.1875,2000.5,2000.4,6.9247]
[1617807948181,1.014,2000.5,2000.4,6.9247]
[1617807948789,2.571,2000.8,2000.4,6.9247]
[1617807949231,2.90695,2000.5,2000.4,6.9247]
[1617807950799,2.90695,2000.5,2000.4,72.616]
[1617807950995,2.90695,2000.5,2000.4,71.7213]
[1617807951488,2.90695,2000.5,2000.4,6.03]
[1617807951689,2.90695,2000.5,2000.2,6.03]
[1617807951889,2.90695,2000.5,2000.4,6.01]
[1617807952389,2.90695,2000.5,2000.2,6.22]
[1617807952688,2.90695,2000.5,2000.4,6.05]
[1617807952989,2.90695,2000.5,2000.2,6.26]
[1617807953590,2.90695,2000.5,2000.0,6.12]
[1617807953791,2.90695,2000.5,2000.3,5.99]
[1617807954090,2.90695,2000.5,2000.3,2.9034]
[1617807954391,2.90695,2000.5,2000.4,73.4579]
[1617807956092,2.90695,2000.5,2000.4,76.0581]
[1617807957495,2.571,2000.8,2000.4,76.0581]
[1617807957693,2.571,2000.8,2000.4,8.7802]
[1617807958495,2.571,2001.6,2000.4,8.7802]
[1617807958696,2.571,2001.6,2001.2,61.2127]
[1617807958895,2.571,2001.6,2001.2,64.2185]
[1617807959096,2.571,2001.6,2001.3,6.16]
[1617807959299,2.90695,2001.4,2001.3,6.16]
[1617807962601,2.90695,2001.4,2001.3,5.1413]
[1617807963602,2.90695,2001.4,2001.3,4.744]
[1617807965905,2.90695,2001.4,2001.3,4.1972]
[1617807967906,2.90695,2001.4,2001.3,4.0555]
[1617807969441,65.14675,2001.4,2001.3,4.0555]
[1617807970453,2.90695,2001.4,2001.3,4.0555]
[1617807971135,2.90695,2001.4,2001.3,6.6024]
[1617807973328,2.90695,2001.4,2001.3,9.50935]
[1617807974516,7.669,2002.1,2001.3,9.50935]
[1617807975416,7.669,2002.1,2001.9,2.90695]
[1617807975716,2.571,2002.1,2002.0,6.17]
[1617807977416,5.47795,2002.1,2002.0,6.17]
[1617807977718,5.47795,2002.1,2001.7,6.02]
[1617807978118,5.47795,2002.1,2001.7,5.019]
[1617807979521,2.571,2002.1,2001.8,2.90695]
[1617807979717,2.571,2002.1,2001.8,5.39735]
[1617807979919,2.571,2002.1,2001.9,6.23]
[1617807981442,2.90695,2002.2,2001.9,6.23]
[1617807983443,2.90695,2002.2,2002.1,2.90695]
[1617807983844,2.90695,2002.2,2002.1,9.05695]
[1617807984061,2.571,2002.8,2002.1,9.05695]
[1617807985427,2.571,2002.8,2002.6,2.90695]
[1617807985625,77.6125,2003.4,2003.1,67.1745]
[1617807986028,2.571,2003.4,2003.2,6.14]
[1617807986225,2.571,2003.4,2003.2,5.403]
[1617807986426,2.571,2003.4,2002.7,6.24]
[1617807986625,7.669,2003.4,2003.3,0.1]
[1617807986825,7.669,2003.4,2003.3,78.5643]
[1617807987025,7.669,2003.4,2003.3,78.4643]
[1617807987225,7.669,2003.4,2003.3,77.4796]
[1617807987425,10.57595,2003.4,2003.3,77.5396]
[1617807988525,10.57595,2003.4,2003.3,77.044]
[1617807989228,10.57595,2003.4,2003.3,0.06]
[1617807989644,10.57595,2003.4,2002.3,5.99]
[1617807990037,10.57595,2003.4,2003.3,6.09]
[1617807990233,10.57595,2003.4,2002.3,6.25]
[1617807990435,40.57595,2003.4,2003.3,6.01]
[1617807990736,40.57595,2003.4,2003.2,69.5026]
[1617807991232,40.57595,2003.4,2003.3,5.3717]
[1617807991733,40.57595,2003.4,2003.3,4.9182]
[1617807991940,42.57595,2003.4,2003.3,4.6683]
[1617807992142,42.57595,2003.4,2003.3,0.5262]
[1617807992442,34.90695,2003.4,2002.2,14.1291]
[1617807992645,36.82305,2003.4,2002.2,14.1291]
[1617807992842,69.0848,2003.0,2002.2,14.1291]
[1617807993041,2.0,2002.9,2002.3,6.27]
[1617807993244,34.1233,2002.9,2002.3,6.27]
[1617807993441,2.90695,2002.4,2002.3,6.27]
[1617807993641,6.23195,2002.4,2002.3,6.27]